fUST/lending_fUST_20240524
["ID","MTS","AMOUNT","RATE_DAILY","PERIOD"]
[327864661,1716564640105,-942.74,0.00024657,2]
[327864662,1716564640115,-500.0,0.00024657,2]
[327864663,1716564640125,-500.0,0.00024657,2]
[327864664,1716564640135,-500.0,0.00024657,2]
[327864665,1716564640144,-553.99,0.00024657,2]
[327864666,1716564640154,-540.04,0.00024657,2]
[327864667,1716564640164,-151.0,0.00024669,5]
[327864668,1716564640173,-500.0,0.0002493,3]
[327864669,1716564640183,-250.0,0.00024931,3]
[327864670,1716564640193,-500.0,0.00024931,3]
[327864671,1716564640204,-500.0,0.00024931,3]
[327864672,1716564640216,-500.0,0.00024931,3]
[327864673,1716564640226,-500.0,0.00024931,3]
[327864674,1716564640236,-500.0,0.00024931,3]
[327864675,1716564640246,-500.0,0.00024931,3]
[327864676,1716564640256,-500.0,0.00024931,3]
[327864677,1716564640266,-500.77,0.00024931,3]
[327864678,1716564640275,-500.0,0.00024931,3]
[327864679,1716564640284,-500.0,0.00024931,3]
[327864680,1716564640294,-500.0,0.00024931,3]
[327864681,1716564640304,-500.0,0.00024931,3]
[327864682,1716564640314,-500.0,0.00024931,3]
[327864683,1716564640324,-500.0,0.00024931,3]
[327864684,1716564640334,-500.0,0.00024931,3]
[327864685,1716564640343,-500.0,0.00024931,3]
[327864686,1716564640353,-500.0,0.00024931,3]
[327864687,1716564640362,-500.0,0.00024931,3]
[327864688,1716564640372,-335.81662484,0.00024931,3]
[327864689,1716564640382,-500.0,0.00024931,3]
[327864690,1716564640391,-500.0,0.00024931,3]
[327864691,1716564640401,-500.0,0.00024931,3]
[327864692,1716564640411,-500.0,0.00024931,3]
[327864693,1716564640420,-561.5,0.00024931,3]
[327864694,1716564640430,-500.0,0.00024931,3]
[327864695,1716564640440,-500.0,0.00024931,3]
[327864696,1716564640452,-500.0,0.00024931,3]
[327864697,1716564640462,-500.0,0.00024931,3]
[327864698,1716564640471,-500.0,0.00024931,3]
[327864699,1716564640482,-500.0,0.00024931,3]
[327864700,1716564640492,-500.0,0.00024931,3]
[327864701,1716564640502,-500.0,0.00024931,3]
[327864702,1716564640511,-500.0,0.00024931,3]
[327864703,1716564640521,-500.0,0.00024931,3]
[327864704,1716564640530,-500.0,0.00024931,3]
[327864705,1716564640540,-500.0,0.00024931,2]
[327864706,1716564640550,-393.65014454,0.00024931,3]
[327864707,1716564640560,-609.98,0.00024931,3]
[327864708,1716564640570,-500.0,0.00024931,3]
[327864709,1716564640579,-500.0,0.00024931,3]
[327864710,1716564640589,-500.0,0.00024931,3]
[327864711,1716564640599,-500.0,0.00024931,3]
[327864712,1716564640609,-500.0,0.00024931,3]
[327864713,1716564640619,-616.7,0.00024931,3]
[327864714,1716564640629,-969.24,0.00024931,3]
[327864715,1716564640638,-719.31,0.00024931,3]
[327864716,1716564640648,-500.0,0.00024931,3]
[327864717,1716564640663,-1248.42,0.00024931,3]
[327864718,1716564640673,-500.0,0.00024931,3]
[327864719,1716564640683,-500.0,0.00024931,3]
[327864720,1716564640695,-945.5,0.00024931,3]
[327864721,1716564640704,-500.0,0.00024931,3]
[327864722,1716564640714,-500.0,0.00024931,3]
[327864723,1716564640723,-500.0,0.00024931,3]
[327864724,1716564640733,-603.17,0.00024931,3]
[327864725,1716564640745,-2571.68,0.00024931,3]
[327864726,1716564640754,-849.22,0.00024931,3]
[327864727,1716564640764,-500.0,0.00024931,3]
[327864728,1716564640773,-749.55,0.00024931,3]
[327864729,1716564640782,-500.0,0.00024931,3]
[327864730,1716564640792,-500.0,0.00024931,3]
[327864731,1716564640801,-500.0,0.00024931,3]
[327864732,1716564640811,-500.0,0.00024931,3]
[327864733,1716564640820,-500.0,0.00024931,3]
[327864734,1716564640830,-1059.43,0.00024931,3]
[327864735,1716564640841,-7502.62,0.00024931,3]
[327864736,1716564640851,-530.31,0.00024931,3]
[327864737,1716564640860,-2504.19,0.00024931,3]
[327864738,1716564640871,-8030.01,0.00024931,3]
[327864739,1716564640880,-500.0,0.00024931,3]
[327864740,1716564640890,-500.0,0.00024931,3]
[327864741,1716564640900,-500.0,0.00024931,3]
[327864742,1716564640909,-500.0,0.00024931,3]
[327864743,1716564640919,-500.0,0.00024931,3]
[327864744,1716564640929,-500.0,0.00024931,3]
[327864745,1716564640938,-889.01,0.00024931,3]
[327864746,1716564640948,-545.91,0.00024931,3]
[327864747,1716564640957,-500.0,0.00024931,3]
[327864748,1716564640967,-1614.07,0.00024931,3]
[327864749,1716564640976,-6148.34,0.00024931,3]
[327864750,1716564640986,-1068.24,0.00024931,3]
[327864751,1716564640996,-478.44852067,0.00024931,3]
[327864752,1716564641005,-500.0,0.00024931,3]
[327864753,1716564641015,-924.4,0.00024931,3]
[327864754,1716564641025,-500.0,0.00024931,3]
[327864756,1716564641035,-884.62,0.00024931,3]
[327864757,1716564641044,-500.0,0.00024931,3]
[327864758,1716564641054,-500.0,0.00024931,3]
[327864760,1716564641064,-500.0,0.00024931,3]
[327864762,1716564641074,-4788.64,0.00024931,3]
[327864764,1716564641083,-500.0,0.00024931,3]
[327864766,1716564641093,-500.0,0.00024931,3]
[327864767,1716564641104,-812.5,0.00024931,3]
[327864769,1716564641114,-500.0,0.00024931,3]
[327864771,1716564641123,-500.0,0.00024931,3]
[327864772,1716564641132,-500.0,0.00024931,3]
[327864773,1716564641141,-1661.62,0.00024931,3]
[327864774,1716564641150,-500.0,0.00024931,3]
[327864775,1716564641160,-500.0,0.00024931,3]
[327864776,1716564641170,-1173.5,0.00024931,3]
[327864777,1716564641179,-500.0,0.00024931,3]
[327864778,1716564641189,-806.11,0.00024931,3]
[327864779,1716564641200,-3102.78,0.00024931,3]
[327864780,1716564641209,-500.0,0.00024931,3]
[327864781,1716564641219,-500.0,0.00024931,3]
[327864782,1716564641229,-500.0,0.00024931,3]
[327864783,1716564641238,-1278.05,0.00024931,3]
[327864784,1716564641248,-500.0,0.00024931,3]
[327864785,1716564641258,-500.0,0.00024931,3]
[327864786,1716564641268,-500.0,0.00024931,3]
[327864787,1716564641281,-185.1822236,0.00024931,3]
[327864788,1716564641291,-500.0,0.00024931,3]
[327864789,1716564641300,-500.0,0.00024931,3]
[327864790,1716564641310,-1329.45,0.00024931,3]
[327864791,1716564641320,-1112.55,0.00024931,3]
[327864792,1716564641329,-500.0,0.00024931,3]
[327864793,1716564641339,-653.06,0.00024931,3]
[327864794,1716564641348,-1910.11,0.00024931,3]
[327864795,1716564641357,-500.0,0.00024931,3]
[327864796,1716564641366,-500.0,0.00024931,3]
[327864797,1716564641376,-387.46,0.00024931,3]
[327864798,1716564641387,-1049.93,0.00024931,3]
[327864799,1716564641396,-1410.9,0.00024931,3]
[327864800,1716564641406,-500.0,0.00024931,3]
[327864801,1716564641415,-500.0,0.00024931,3]
[327864802,1716564641424,-500.0,0.00024931,3]
[327864803,1716564641433,-415.24998179,0.00024931,3]
[327864804,1716564641444,-500.0,0.00024931,3]
[327864805,1716564641454,-942.74,0.00024931,3]
[327864806,1716564641463,-500.0,0.00024931,3]
[327864807,1716564641473,-553.99,0.00024931,3]
[327864808,1716564641482,-540.04,0.00024931,3]
[327864809,1716564641497,-456.57692779,0.00025,2]
[327864810,1716564641508,-760.9951019,0.00025,2]
[327864811,1716564641517,-401.04849883,0.00025,2]
[327864812,1716564641526,-151.0,0.00025,2]
[327864813,1716564641536,-150.83408251,0.00025038,7]
[327864814,1716564641545,-151.0,0.00025039,5]
[327864815,1716564641556,-250.0,0.00025205,4]
[327864816,1716564641565,-186.26335302,0.00025205,4]
[327864817,1716564641575,-500.0,0.00025205,4]
[327864818,1716564641587,-500.0,0.00025205,4]
[327864819,1716564641597,-500.0,0.00025205,4]
[327864820,1716564641606,-500.0,0.00025205,4]
[327864821,1716564641616,-500.77,0.00025205,4]
[327864822,1716564641629,-500.0,0.00025205,4]
[327864823,1716564641639,-500.0,0.00025205,4]
[327864824,1716564641651,-500.0,0.00025205,4]
[327864825,1716564641663,-500.0,0.00025205,4]
[327864826,1716564641672,-500.0,0.00025205,4]
[327864827,1716564641682,-500.0,0.00025205,4]
[327864828,1716564641693,-500.0,0.00025205,4]
[327864829,1716564641703,-500.0,0.00025205,4]
[327864830,1716564641713,-500.0,0.00025205,4]
[327864831,1716564641722,-500.0,0.00025205,4]
[327864832,1716564641733,-500.0,0.00025205,4]
[327864833,1716564641743,-500.0,0.00025205,4]
[327864834,1716564641753,-500.0,0.00025205,4]
[327864835,1716564641763,-500.0,0.00025205,4]
[327864836,1716564641772,-561.5,0.00025205,4]
[327864837,1716564641781,-500.0,0.00025205,4]
[327864838,1716564641791,-500.0,0.00025205,4]
[327864839,1716564641801,-500.0,0.00025205,4]
[327864840,1716564641811,-500.0,0.00025205,4]
[327864841,1716564641820,-244.59407564,0.00025205,4]
[327864842,1716564641829,-500.0,0.00025205,4]
[327864843,1716564641839,-500.0,0.00025205,4]
[327864844,1716564641849,-500.0,0.00025205,4]
[327864845,1716564641858,-500.0,0.00025205,4]
[327864846,1716564641868,-609.98,0.00025205,4]
[327864847,1716564641878,-500.0,0.00025205,4]
[327864848,1716564641887,-500.0,0.00025205,4]
[327864849,1716564641897,-616.7,0.00025205,4]
[327864850,1716564641907,-969.24,0.00025205,4]
[327864851,1716564641916,-719.31,0.00025205,4]
[327864852,1716564641926,-500.0,0.00025205,4]
[327864853,1716564641936,-1248.42,0.00025205,4]
[327864854,1716564641946,-500.0,0.00025205,4]
[327864855,1716564641955,-500.0,0.00025205,4]
[327864856,1716564641964,-945.5,0.00025205,4]
[327864857,1716564641974,-500.0,0.00025205,4]
[327864858,1716564641983,-603.17,0.00025205,4]
[327864859,1716564641992,-2571.68,0.00025205,4]
[327864860,1716564642001,-849.22,0.00025205,4]
[327864861,1716564642010,-500.0,0.00025205,4]
[327864862,1716564642020,-749.55,0.00025205,4]
[327864863,1716564642029,-500.0,0.00025205,4]
[327864864,1716564642038,-500.0,0.00025205,4]
[327864865,1716564642048,-500.0,0.00025205,4]
[327864866,1716564642057,-500.0,0.00025205,4]
[327864867,1716564642067,-1059.43,0.00025205,4]
[327864868,1716564642077,-7502.62,0.00025205,4]
[327864869,1716564642086,-530.31,0.00025205,4]
[327864870,1716564642095,-2504.19,0.00025205,4]
[327864871,1716564642104,-8030.01,0.00025205,4]
[327864872,1716564642114,-440.73,0.00025205,4]
[327864873,1716564642123,-500.0,0.00025205,4]
[327864874,1716564642132,-500.0,0.00025205,4]
[327864875,1716564642142,-500.0,0.00025205,4]
[327864876,1716564642152,-889.01,0.00025205,4]
[327864877,1716564642161,-545.91,0.00025205,4]
[327864878,1716564642170,-1614.07,0.00025205,4]
[327864879,1716564642179,-265.59880496,0.00025205,4]
[327864880,1716564642189,-6148.34,0.00025205,4]
[327864881,1716564642199,-1068.24,0.00025205,4]
[327864882,1716564642208,-500.0,0.00025205,4]
[327864883,1716564642216,-924.4,0.00025205,4]
[327864884,1716564642226,-500.0,0.00025205,4]
[327864885,1716564642236,-884.62,0.00025205,4]
[327864886,1716564642245,-500.0,0.00025205,4]
[327864887,1716564642255,-500.0,0.00025205,4]
[327864888,1716564642264,-500.0,0.00025205,4]
[327864889,1716564642273,-4788.64,0.00025205,4]
[327864890,1716564642283,-500.0,0.00025205,4]
[327864891,1716564642292,-500.0,0.00025205,4]
[327864892,1716564642301,-812.5,0.00025205,4]
[327864893,1716564642310,-500.0,0.00025205,4]
[327864894,1716564642319,-500.0,0.00025205,4]
[327864895,1716564642329,-500.0,0.00025205,4]
[327864896,1716564642339,-1661.62,0.00025205,4]
[327864897,1716564642348,-500.0,0.00025205,4]
[327864898,1716564642358,-500.0,0.00025205,4]
[327864899,1716564642367,-1173.5,0.00025205,4]
[327864900,1716564642377,-500.0,0.00025205,4]
[327864901,1716564642386,-806.11,0.00025205,4]
[327864902,1716564642395,-3102.78,0.00025205,4]
[327864903,1716564642404,-500.0,0.00025205,4]
[327864904,1716564642413,-500.0,0.00025205,4]
[327864905,1716564642422,-500.0,0.00025205,4]
[327864906,1716564642432,-1278.05,0.00025205,4]
[327864907,1716564642441,-500.0,0.00025205,4]
[327864908,1716564642452,-500.0,0.00025205,4]
[327864909,1716564642461,-500.0,0.00025205,4]
[327864910,1716564642470,-500.0,0.00025205,4]
[327864911,1716564642479,-500.0,0.00025205,4]
[327864912,1716564642489,-1329.45,0.00025205,4]
[327864914,1716564642498,-1112.55,0.00025205,4]
[327864915,1716564642509,-500.0,0.00025205,4]
[327864916,1716564642519,-653.06,0.00025205,4]
[327864917,1716564642528,-1910.11,0.00025205,4]
[327864918,1716564642537,-500.0,0.00025205,4]
[327864919,1716564642546,-500.0,0.00025205,4]
[327864920,1716564642555,-1049.93,0.00025205,4]
[327864921,1716564642564,-1410.9,0.00025205,4]
[327864922,1716564642573,-500.0,0.00025205,4]
[327864923,1716564642583,-500.0,0.00025205,4]
[327864924,1716564642592,-500.0,0.00025205,4]
[327864925,1716564642601,-500.0,0.00025205,4]
[327864926,1716564642611,-942.74,0.00025205,4]
[327864927,1716564642620,-500.0,0.00025205,4]
[327864928,1716564642629,-553.99,0.00025205,4]
[327864929,1716564642638,-540.04,0.00025205,4]
[327864930,1716564642647,-151.0,0.00025409,5]
[327864931,1716564642659,-250.0,0.00025479,5]
[327864932,1716564642669,-500.0,0.00025479,5]
[327864933,1716564642678,-500.0,0.00025479,5]
[327864934,1716564642798,-500.77,0.00025479,5]
[327864938,1716564642821,-500.0,0.00025479,5]
[327864939,1716564642831,-500.0,0.00025479,5]
[327864941,1716564642841,-500.0,0.00025479,5]
[327864942,1716564642850,-500.0,0.00025479,5]
[327864944,1716564642859,-517.10827099,0.00025479,5]
[327864945,1716564642869,-500.0,0.00025479,5]
[327864947,1716564642878,-500.0,0.00025479,5]
[327864948,1716564642887,-500.0,0.00025479,5]
[327864949,1716564642897,-500.0,0.00025479,5]
[327864950,1716564642906,-500.0,0.00025479,5]
[327864951,1716564642915,-500.0,0.00025479,5]
[327864952,1716564642924,-500.0,0.00025479,5]
[327864953,1716564642933,-561.5,0.00025479,5]
[327864954,1716564642942,-500.0,0.00025479,5]
[327864955,1716564642953,-500.0,0.00025479,5]
[327864956,1716564642962,-500.0,0.00025479,5]
[327864957,1716564642971,-500.0,0.00025479,5]
[327864958,1716564642980,-500.0,0.00025479,5]
[327864959,1716564642989,-500.0,0.00025479,5]
[327864960,1716564642998,-500.0,0.00025479,5]
[327864961,1716564643008,-609.98,0.00025479,5]
[327864962,1716564643017,-500.0,0.00025479,5]
[327864963,1716564643026,-500.0,0.00025479,5]
[327864964,1716564643035,-616.7,0.00025479,5]
[327864965,1716564643044,-969.24,0.00025479,5]
[327864966,1716564643053,-719.31,0.00025479,5]
[327864967,1716564643063,-500.0,0.00025479,5]
[327864968,1716564643071,-1248.42,0.00025479,5]
[327864969,1716564643080,-500.0,0.00025479,5]
[327864970,1716564643089,-500.0,0.00025479,5]
[327864971,1716564643098,-945.5,0.00025479,5]
[327864972,1716564643108,-500.0,0.00025479,5]
[327864975,1716564643118,-603.17,0.00025479,5]
[327864976,1716564643127,-2571.68,0.00025479,5]
[327864978,1716564643136,-849.22,0.00025479,5]
[327864980,1716564643146,-243.4891551,0.00025479,5]
[327864981,1716564643155,-749.55,0.00025479,5]
[327864982,1716564643164,-500.0,0.00025479,5]
[327864983,1716564643174,-500.0,0.00025479,5]
[327864984,1716564643183,-220.18273684,0.00025479,5]
[327864985,1716564643193,-1059.43,0.00025479,5]
[327864986,1716564643205,-7502.62,0.00025479,5]
[327864987,1716564643214,-530.31,0.00025479,5]
[327864988,1716564643223,-2504.19,0.00025479,5]
[327864989,1716564643232,-8030.01,0.00025479,5]
[327864990,1716564643241,-500.0,0.00025479,5]
[327864992,1716564643251,-500.0,0.00025479,5]
[327864993,1716564643260,-500.0,0.00025479,5]
[327864995,1716564643270,-889.01,0.00025479,5]
[327864997,1716564643280,-545.91,0.00025479,5]
[327864999,1716564643289,-1614.07,0.00025479,5]
[327865000,1716564643303,-6148.34,0.00025479,5]
[327865001,1716564643312,-1068.24,0.00025479,5]
[327865002,1716564643321,-500.0,0.00025479,5]
[327865003,1716564643330,-924.4,0.00025479,5]
[327865004,1716564643339,-500.0,0.00025479,5]
[327865005,1716564643347,-884.62,0.00025479,5]
[327865006,1716564643356,-500.0,0.00025479,5]
[327865007,1716564643366,-500.0,0.00025479,5]
[327865008,1716564643375,-500.0,0.00025479,5]
[327865009,1716564643383,-4788.64,0.00025479,5]
[327865010,1716564643392,-500.0,0.00025479,5]
[327865011,1716564643401,-500.0,0.00025479,5]
[327865012,1716564643410,-812.5,0.00025479,5]
[327865013,1716564643419,-500.0,0.00025479,5]
[327865014,1716564643428,-500.0,0.00025479,5]
[327865015,1716564643437,-1661.62,0.00025479,5]
[327865016,1716564643448,-500.0,0.00025479,5]
[327865017,1716564643460,-500.0,0.00025479,5]
[327865018,1716564643469,-1173.5,0.00025479,5]
[327865019,1716564643478,-500.0,0.00025479,5]
[327865020,1716564643486,-806.11,0.00025479,5]
[327865021,1716564643495,-3102.78,0.00025479,5]
[327865022,1716564643504,-500.0,0.00025479,5]
[327865023,1716564643513,-500.0,0.00025479,5]
[327865028,1716564643523,-500.0,0.00025479,5]
[327865030,1716564643532,-1278.05,0.00025479,5]
[327865032,1716564643541,-500.0,0.00025479,5]
[327865033,1716564643550,-500.0,0.00025479,5]
[327865034,1716564643559,-500.0,0.00025479,5]
[327865035,1716564643569,-500.0,0.00025479,5]
[327865036,1716564643578,-500.0,0.00025479,5]
[327865037,1716564643587,-1329.45,0.00025479,5]
[327865038,1716564643596,-1112.55,0.00025479,5]
[327865039,1716564643605,-500.0,0.00025479,5]
[327865040,1716564643614,-653.06,0.00025479,5]
[327865041,1716564643623,-1910.11,0.00025479,5]
[327865042,1716564643632,-500.0,0.00025479,5]
[327865043,1716564643642,-500.0,0.00025479,5]
[327865044,1716564643651,-1049.93,0.00025479,5]
[327865045,1716564643665,-1410.9,0.00025479,5]
[327865046,1716564643675,-500.0,0.00025479,5]
[327865047,1716564643684,-500.0,0.00025479,5]
[327865048,1716564643694,-500.0,0.00025479,5]
[327865049,1716564643708,-942.74,0.00025479,5]
[327865050,1716564643717,-500.0,0.00025479,5]
[327865051,1716564643726,-553.99,0.00025479,5]
[327865052,1716564643737,-540.04,0.00025479,5]
[327865053,1716564643747,-150.83408251,0.00025549,4]
[327865054,1716564643756,-327.50359592,0.00025653,2]
[327865055,1716564643765,-250.0,0.00025753,6]
[327865056,1716564643774,-500.0,0.00025753,6]
[327865057,1716564643784,-500.0,0.00025753,6]
[327865058,1716564643794,-500.77,0.00025753,6]
[327865060,1716564643803,-500.0,0.00025753,6]
[327865062,1716564643813,-500.0,0.00025753,6]
[327865064,1716564643823,-621.32364585,0.00025753,6]
[327865065,1716564643832,-500.0,0.00025753,6]
[327865066,1716564643842,-500.0,0.00025753,6]
[327865067,1716564643851,-500.0,0.00025753,6]
[327865068,1716564643861,-500.0,0.00025753,6]
[327865069,1716564643870,-500.0,0.00025753,6]
[327865070,1716564643881,-500.0,0.00025753,6]
[327865071,1716564643890,-500.0,0.00025753,6]
[327865072,1716564643899,-500.0,0.00025753,6]
[327865073,1716564643909,-561.5,0.00025753,6]
[327865074,1716564643918,-500.0,0.00025753,6]
[327865076,1716564643927,-194.88120767,0.00025753,6]
[327865078,1716564643937,-500.0,0.00025753,6]
[327865080,1716564643946,-500.0,0.00025753,6]
[327865081,1716564643957,-500.0,0.00025753,6]
[327865082,1716564643966,-500.0,0.00025753,6]
[327865083,1716564643975,-609.98,0.00025753,6]
[327865084,1716564643985,-500.0,0.00025753,6]
[327865086,1716564643994,-500.0,0.00025753,6]
[327865088,1716564644003,-616.7,0.00025753,6]
[327865089,1716564644013,-969.24,0.00025753,6]
[327865090,1716564644025,-719.31,0.00025753,6]
[327865091,1716564644035,-500.0,0.00025753,6]
[327865092,1716564644045,-1248.42,0.00025753,6]
[327865093,1716564644054,-500.0,0.00025753,6]
[327865094,1716564644064,-945.5,0.00025753,6]
[327865095,1716564644073,-500.0,0.00025753,6]
[327865096,1716564644083,-603.17,0.00025753,6]
[327865097,1716564644092,-2571.68,0.00025753,6]
[327865098,1716564644102,-849.22,0.00025753,6]
[327865099,1716564644112,-749.55,0.00025753,6]
[327865100,1716564644122,-500.0,0.00025753,6]
[327865101,1716564644132,-500.0,0.00025753,6]
[327865102,1716564644142,-1059.43,0.00025753,6]
[327865103,1716564644151,-7502.62,0.00025753,6]
[327865104,1716564644161,-530.31,0.00025753,6]
[327865105,1716564644171,-2504.19,0.00025753,6]
[327865106,1716564644180,-8030.01,0.00025753,6]
[327865107,1716564644189,-500.0,0.00025753,6]
[327865108,1716564644200,-500.0,0.00025753,6]
[327865109,1716564644209,-500.0,0.00025753,6]
[327865110,1716564644218,-889.01,0.00025753,6]
[327865111,1716564644228,-545.91,0.00025753,6]
[327865112,1716564644237,-1614.07,0.00025753,6]
[327865113,1716564644247,-6148.34,0.00025753,6]
[327865114,1716564644256,-1068.24,0.00025753,6]
[327865115,1716564644265,-500.0,0.00025753,6]
[327865116,1716564644286,-924.4,0.00025753,6]
[327865117,1716564644297,-500.0,0.00025753,6]
[327865118,1716564644307,-884.62,0.00025753,6]
[327865119,1716564644317,-500.0,0.00025753,6]
[327865120,1716564644328,-500.0,0.00025753,6]
[327865121,1716564644338,-500.0,0.00025753,6]
[327865122,1716564644348,-4788.64,0.00025753,6]
[327865123,1716564644358,-500.0,0.00025753,6]
[327865124,1716564644369,-500.0,0.00025753,6]
[327865125,1716564644379,-812.5,0.00025753,6]
[327865126,1716564644388,-500.0,0.00025753,6]
[327865127,1716564644398,-500.0,0.00025753,6]
[327865128,1716564644408,-1661.62,0.00025753,6]
[327865129,1716564644419,-500.0,0.00025753,6]
[327865130,1716564644428,-500.0,0.00025753,6]
[327865131,1716564644438,-1173.5,0.00025753,6]
[327865132,1716564644449,-500.0,0.00025753,6]
[327865133,1716564644459,-806.11,0.00025753,6]
[327865134,1716564644468,-3102.78,0.00025753,6]
[327865135,1716564644478,-500.0,0.00025753,6]
[327865136,1716564644488,-500.0,0.00025753,6]
[327865137,1716564644498,-500.0,0.00025753,6]
[327865138,1716564644508,-1278.05,0.00025753,6]
[327865139,1716564644518,-197.55749243,0.00025753,6]
[327865140,1716564644528,-500.0,0.00025753,6]
[327865141,1716564644538,-500.0,0.00025753,6]
[327865142,1716564644548,-500.0,0.00025753,6]
[327865143,1716564644557,-1329.45,0.00025753,6]
[327865144,1716564644568,-1112.55,0.00025753,6]
[327865145,1716564644578,-653.06,0.00025753,6]
[327865146,1716564644588,-1910.11,0.00025753,6]
[327865147,1716564644599,-500.0,0.00025753,6]
[327865148,1716564644610,-500.0,0.00025753,6]
[327865149,1716564644620,-1049.93,0.00025753,6]
[327865150,1716564644630,-1410.9,0.00025753,6]
[327865151,1716564644640,-500.0,0.00025753,6]
[327865152,1716564644652,-500.0,0.00025753,6]
[327865153,1716564644666,-500.0,0.00025753,6]
[327865154,1716564644677,-942.74,0.00025753,6]
[327865155,1716564644688,-500.0,0.00025753,6]
[327865156,1716564644700,-553.99,0.00025753,6]
[327865157,1716564644710,-540.04,0.00025753,6]
[327865158,1716564644720,-151.0,0.00025779,5]
[327865159,1716564644730,-1012.10349864,0.00026,2]
[327865160,1716564644744,-250.0,0.00026027,7]
[327865161,1716564644755,-500.0,0.00026027,7]
[327865162,1716564644765,-500.0,0.00026027,7]
[327865163,1716564644775,-500.77,0.00026027,7]
[327865164,1716564644785,-500.0,0.00026027,7]
[327865165,1716564644795,-500.0,0.00026027,7]
[327865166,1716564644805,-500.0,0.00026027,7]
[327865167,1716564644816,-500.0,0.00026027,7]
[327865168,1716564644826,-500.0,0.00026027,7]
[327865169,1716564644836,-500.0,0.00026027,7]
[327865170,1716564644846,-500.0,0.00026027,7]
[327865171,1716564644856,-500.0,0.00026027,7]
[327865172,1716564644867,-500.0,0.00026027,7]
[327865173,1716564644877,-500.0,0.00026027,7]
[327865174,1716564644887,-561.5,0.00026027,7]
[327865175,1716564644897,-500.0,0.00026027,7]
[327865176,1716564644907,-500.0,0.00026027,7]
[327865177,1716564644917,-500.0,0.00026027,7]
[327865178,1716564644927,-500.0,0.00026027,7]
[327865179,1716564644936,-500.0,0.00026027,7]
[327865180,1716564644946,-609.98,0.00026027,7]
[327865181,1716564644960,-500.0,0.00026027,7]
[327865182,1716564644971,-500.0,0.00026027,7]
[327865183,1716564644980,-616.7,0.00026027,7]
[327865184,1716564644991,-969.24,0.00026027,7]
[327865185,1716564645000,-719.31,0.00026027,7]
[327865186,1716564645011,-1248.42,0.00026027,7]
[327865187,1716564645021,-500.0,0.00026027,7]
[327865188,1716564645031,-945.5,0.00026027,7]
[327865189,1716564645041,-500.0,0.00026027,7]
[327865190,1716564645051,-603.17,0.00026027,7]
[327865191,1716564645059,-2571.68,0.00026027,7]
[327865192,1716564645068,-849.22,0.00026027,7]
[327865193,1716564645078,-749.55,0.00026027,7]
[327865194,1716564645088,-500.0,0.00026027,7]
[327865195,1716564645099,-500.0,0.00026027,7]
[327865196,1716564645108,-1059.43,0.00026027,7]